bitfinex/quotes_ETHUSD_20250326
["timestamp","ask_amount","ask_price","bid_price","bid_amount"]
[1742954756857,3.0,2069.3,2069.1,4.83289]
[1742954757623,3.0,2069.3,2069.0,4.83324]
[1742954758066,0.35769771,2069.4,2069.1,4.83301]
[1742954758267,5.29966007,2069.5,2069.1,4.83301]
[1742954758471,6.38610608,2069.5,2069.1,4.83301]
[1742954758866,6.74323856,2069.5,2069.1,4.83301]
[1742954759074,6.74323856,2069.5,2069.2,4.83266]
[1742954759274,6.74323856,2069.5,2069.1,4.83301]
[1742954759970,6.74323856,2069.5,2069.1,4.83292]
[1742954760171,6.74323856,2069.5,2069.1,4.83291]
[1742954760371,5.65679255,2069.5,2069.1,4.83291]
[1742954760753,5.65679255,2069.5,2069.0,4.83318]
[1742954761273,5.65679255,2069.5,2069.1,4.83296]
[1742954761845,0.7768,2069.6,2069.3,4.83246]
[1742954762075,0.7768,2069.6,2069.3,4.83244]
[1742954762373,1.13127417,2069.6,2069.3,4.83244]
[1742954762548,0.8233,2069.8,2069.2,0.7892]
[1742954762745,0.8233,2069.8,2069.5,4.83198]
[1742954763349,0.8233,2069.8,2069.4,4.83229]
[1742954764480,3.12296007,2069.8,2069.4,4.83229]
[1742954764683,3.12296007,2069.8,2069.3,19.33254]
[1742954764886,2.29966007,2069.6,2069.2,4.83275]
[1742954765554,2.29966007,2069.6,2069.2,9.66535]
[1742954766386,2.29966007,2069.6,2069.2,4.8326]
[1742954767459,1.43559601,2069.8,2069.4,4.83224]
[1742954767460,3.12296007,2069.8,2069.4,4.83224]
[1742954767662,3.0,2069.7,2069.3,4.83254]
[1742954768479,3.35548721,2069.7,2069.2,4.83278]
[1742954768685,2.29966007,2069.6,2069.2,9.66547]
[1742954768980,2.29966007,2069.6,2069.2,9.66537]
[1742954769180,3.35548721,2069.7,2069.2,9.66537]
[1742954769181,3.35548721,2069.7,2069.3,4.83237]
[1742954769381,3.35548721,2069.7,2069.4,4.83221]
[1742954769586,0.8233,2069.8,2069.5,4.83197]
[1742954769758,3.11536007,2070.0,2069.5,9.66392]
[1742954769958,3.11536007,2070.0,2069.6,4.83185]
[1742954770158,0.31153601,2069.9,2069.6,4.83185]
[1742954770359,0.31153601,2069.9,2069.5,4.83203]
[1742954770951,0.31153601,2069.9,2069.6,4.83183]
[1742954771165,0.31153601,2069.9,2069.5,4.83198]
[1742954772265,0.31153601,2069.9,2069.5,4.83191]
[1742954772266,0.3555235,2069.9,2069.5,4.83191]
[1742954772571,3.11536007,2070.0,2069.5,4.83191]
[1742954774186,3.11536007,2070.0,2069.6,4.8317]
[1742954774365,2.94794294,2070.2,2069.7,4.83145]
[1742954774562,2.94794294,2070.2,2069.8,4.83128]
[1742954774563,3.76364294,2070.2,2069.8,4.83128]
[1742954774891,3.76364294,2070.2,2069.7,4.83155]
[1742954775186,2.29966007,2070.0,2069.6,4.83184]
[1742954775589,2.29966007,2070.0,2069.6,4.83167]
[1742954775787,5.29966007,2070.0,2069.6,4.83167]
[1742954776090,2.29966007,2070.0,2069.6,9.66335]
[1742954776292,2.29966007,2070.0,2069.7,4.8316]
[1742954776494,2.29966007,2070.0,2069.6,4.83167]
[1742954776816,2.29966007,2070.0,2069.6,9.66334]
[1742954776986,2.29966007,2070.0,2069.6,9.66339]
[1742954777185,2.29966007,2070.0,2069.6,9.66334]
[1742954777369,0.8157,2069.9,2069.6,9.66334]
[1742954777770,0.8157,2069.9,2069.6,4.83167]
[1742954778274,0.8157,2069.9,2069.6,9.66341]
[1742954779293,0.8157,2069.9,2069.7,4.83158]
[1742954779794,0.8157,2069.9,2069.4,0.8053]
[1742954780091,0.8157,2069.9,2069.5,4.83193]
[1742954780517,0.37636429,2070.1,2069.5,4.83193]
[1742954780702,2.29966007,2070.0,2069.6,4.83165]
[1742954782400,2.29966007,2070.0,2069.4,5.63761]
[1742954782401,2.29966007,2070.0,2069.5,4.832]
[1742954782606,2.74913676,2070.0,2069.6,4.83184]
[1742954786710,2.74913676,2070.0,2069.7,4.83161]
[1742954787696,2.74913676,2070.0,2069.6,4.83171]
[1742954788092,2.74913676,2070.0,2069.6,19.33171]
[1742954788590,0.7641,2069.9,2069.4,4.83216]
[1742954788783,3.45788018,2069.9,2069.4,4.83216]
[1742954789213,3.45788018,2069.9,2069.4,24.1643]
[1742954790318,3.45788018,2069.9,2069.4,19.33214]
[1742954790619,3.45788018,2069.9,2069.5,4.83205]
[1742954791830,3.45788018,2069.9,2069.4,19.33214]
[1742954791982,3.45788018,2069.9,2069.4,24.16435]
[1742954792490,3.45788018,2069.9,2069.4,19.33214]
[1742954792890,3.45788018,2069.9,2069.4,4.83214]
[1742954793108,3.45788018,2069.9,2069.4,9.66429]
[1742954794024,3.45788018,2069.9,2069.4,24.16429]
[1742954794400,3.45788018,2069.9,2069.4,19.33214]
[1742954794709,3.45788018,2069.9,2069.4,9.66434]
[1742954794908,3.45788018,2069.9,2069.4,4.83214]
[1742954795503,3.45788018,2069.9,2069.4,9.66428]
[1742954795910,3.45788018,2069.9,2069.4,4.83214]
[1742954796427,3.45788018,2069.9,2069.4,9.66429]
[1742954796620,3.45788018,2069.9,2069.5,4.83207]
[1742954798903,0.8057,2069.4,2068.2,5.59126]
[1742954799100,3.10536007,2068.8,2068.5,4.83427]
[1742954799330,2.29966007,2068.6,2068.3,19.33472]
[1742954799527,2.29966007,2068.6,2068.4,4.83465]
[1742954799727,2.29966007,2068.6,2068.2,4.83509]
[1742954799932,0.36039544,2068.7,2068.2,4.835]
[1742954799933,2.29966007,2068.4,2068.2,4.835]
[1742954800102,2.29966007,2068.4,2068.1,4.8552]
[1742954800303,2.29966007,2068.4,2068.1,19.3552]
[1742954800727,2.29966007,2068.2,2068.1,4.8552]
[1742954807140,0.35747832,2068.7,2068.5,4.8343]
[1742954807314,0.8057,2068.8,2068.5,4.8343]
[1742954807315,0.8057,2068.8,2068.7,4.83395]
[1742954807515,3.10536007,2069.0,2068.8,4.83359]
[1742954807720,3.10536007,2069.0,2068.9,4.83348]
[1742954808034,2.29966007,2069.0,2068.9,19.33348]
[1742954808648,2.29966007,2069.0,2068.9,14.5]
[1742954809012,2.29966007,2069.0,2068.8,4.83353]
[1742954812043,0.8057,2068.9,2068.3,5.59358]
[1742954812240,2.29966007,2068.6,2068.4,4.83456]
[1742954812430,2.29966007,2068.6,2068.4,4.83451]
[1742954813260,2.29966007,2068.6,2068.4,9.66899]
[1742954813432,0.8057,2068.4,2068.1,0.02]
[1742954813631,2.29966007,2068.2,2068.1,0.02]
[1742954813935,3.13126007,2068.2,2068.1,0.02]
[1742954814137,6.49697998,2068.2,2068.1,0.02]
[1742954817948,4.19731991,2068.2,2068.1,0.02]
[1742954818149,6.13126007,2068.2,2068.1,0.02]
[1742954818652,7.27815308,2068.2,2068.1,0.02]
[1742954821755,7.64813103,2068.2,2068.1,0.02]
[1742954822249,10.12947096,2068.2,2068.1,0.02]
[1742954822451,12.42913103,2068.2,2068.1,0.02]
[1742954822621,17.26425103,2068.2,2068.1,0.02]
[1742954823023,19.5639111,2068.2,2068.1,0.02]
[1742954823358,17.26425103,2068.2,2068.1,0.02]
[1742954824821,29.16016303,2068.2,2068.1,0.02]
[1742954825051,28.53905203,2068.2,2068.1,0.02]
[1742954825252,18.14683203,2068.2,2068.1,0.02]
[1742954825553,12.42013103,2068.2,2068.1,0.02]
[1742954827442,17.25525103,2068.2,2068.1,0.02]
[1742954827657,35.05101303,2068.2,2068.1,0.02]
[1742954827834,35.05101303,2068.2,2067.8,0.123287]
[1742954827835,7.83582,2067.9,2067.8,0.123287]
[1742954828159,0.8316,2067.4,2066.8,9.67662]
[1742954828359,0.8316,2067.4,2066.9,4.98894357]
[1742954828360,3.0,2067.3,2066.9,4.98894357]
[1742954828562,3.0,2067.3,2066.9,4.98879357]
[1742954829347,3.0,2067.3,2066.9,0.15079357]
[1742954829677,3.78573601,2067.3,2066.9,0.15079357]
[1742954829839,2.29966007,2067.0,2066.9,0.15079357]
[1742954830834,2.29966007,2067.0,2066.7,4.83861]
[1742954831167,2.29966007,2066.8,2066.7,4.83861]
[1742954831371,2.29966007,2067.0,2066.8,4.83836]
[1742954831863,2.29966007,2067.0,2066.7,4.83861]
[1742954832248,2.29966007,2067.0,2066.8,4.8383]
[1742954832444,2.29966007,2067.7,2067.4,4.8369]
[1742954832635,2.29966007,2067.7,2067.4,10.48785]
[1742954833061,2.29966007,2067.7,2067.4,5.65095]
[1742954833285,2.29966007,2067.7,2067.4,5.65094]
[1742954833587,2.29966007,2067.7,2067.4,0.8141]
[1742954833793,2.29966007,2067.5,2067.2,4.83744]
[1742954834084,2.29966007,2067.3,2066.9,4.83796]
[1742954834286,2.29966007,2067.3,2067.0,4.83783]
[1742954834466,4.779,2067.4,2067.0,4.83774]
[1742954834663,2.29966007,2067.5,2067.1,4.8376]
[1742954835069,2.29966007,2067.5,2067.1,4.83759]
[1742954835271,7.68697608,2067.5,2067.1,4.83759]
[1742954835688,2.29966007,2067.3,2067.1,4.83759]
[1742954836789,2.90997608,2067.5,2067.1,9.67518]
[1742954836988,3.0,2067.6,2067.3,4.83706]
[1742954836989,5.29966007,2067.6,2067.3,4.83706]
[1742954837488,3.0,2067.6,2067.2,0.8141]
[1742954837791,3.0,2067.6,2067.5,4.83675]
[1742954838099,5.29966007,2067.7,2067.5,4.83675]
[1742954838598,5.29966007,2067.7,2067.4,4.83678]
[1742954838794,5.29966007,2067.7,2067.5,4.83675]
[1742954838996,3.0,2067.7,2067.4,4.83678]
[1742954839206,4.774,2067.8,2067.4,4.83678]
[1742954839385,4.774,2067.8,2067.5,4.83668]
[1742954839764,4.774,2067.8,2067.4,4.83678]
[1742954839965,4.17866558,2067.8,2067.3,4.83717]
[1742954840175,4.17866558,2067.8,2067.3,9.67422]
[1742954840176,8.94866558,2067.8,2067.3,9.67422]
[1742954840372,8.94866558,2067.8,2067.4,4.83698]
[1742954841191,8.94866558,2067.8,2067.3,9.67417]
[1742954841396,8.94866558,2067.8,2067.4,4.83698]
[1742954841574,8.94866558,2067.8,2067.4,4.83682]
[1742954841765,7.77,2067.8,2067.4,4.83682]
[1742954842502,3.0,2067.8,2067.5,4.83675]
[1742954843264,3.0,2067.8,2067.2,5.65133]
[1742954843468,0.55,2068.0,2067.2,5.65133]
[1742954843691,5.311,2068.0,2067.6,5.65049]
[1742954843867,3.0,2067.9,2067.6,5.65049]
[1742954844194,5.31,2068.0,2067.6,5.65049]
[1742954844411,5.31,2068.0,2067.7,4.83619]
[1742954844589,5.31,2068.0,2067.6,5.65062]
[1742954844590,0.55,2068.0,2067.6,5.65062]
[1742954844907,5.309,2068.0,2067.6,0.8141]
[1742954845078,5.309,2068.0,2067.5,4.83672]
[1742954846778,6.56490531,2068.0,2067.5,4.83672]
[1742954847177,6.56490531,2068.0,2067.3,2.24509901]
[1742954847178,3.09476007,2067.7,2067.3,4.83721]
[1742954848182,0.7951,2067.4,2066.9,4.83804]
[1742954848379,0.7951,2067.0,2066.9,0.27159654]
[1742954848684,0.7951,2067.0,2066.6,4.83881]
[1742954849095,0.7951,2067.0,2066.7,0.18195666]
[1742954849282,0.7951,2067.0,2066.7,5.11154499]
[1742954850105,0.7951,2067.0,2066.7,0.27293499]
[1742954850311,0.7951,2067.0,2066.7,5.11153499]
[1742954850482,0.7951,2067.0,2066.7,0.27293499]
[1742954850811,0.7951,2067.0,2066.7,0.18098505]
[1742954851014,0.7951,2067.0,2066.7,0.27490303]
[1742954852076,6.09476007,2066.8,2066.7,0.27490303]
[1742954852407,6.09476007,2066.8,2066.1,4.85997]
[1742954852408,3.7951,2066.7,2066.1,4.85997]
[1742954852715,0.7951,2066.7,2066.4,4.83916]
[1742954852915,0.7951,2066.7,2066.5,4.83909]
[1742954853208,0.7951,2066.7,2066.3,4.83938]
[1742954853377,5.6061,2066.7,2066.3,4.83938]
[1742954853579,0.7951,2066.7,2066.3,4.83938]
[1742954853780,5.6051,2066.7,2066.3,4.83938]
[1742954853977,4.809,2066.7,2066.4,4.8393]
[1742954854211,0.7951,2066.9,2066.4,6.563978]
[1742954854416,4.812,2067.0,2066.6,4.83886]
[1742954854604,7.11166007,2067.0,2066.6,4.83886]
[1742954854798,7.812,2067.0,2066.5,4.83905]
[1742954855012,2.29966007,2066.9,2066.5,4.83905]
[1742954855219,2.29966007,2066.9,2066.4,5.59613]
[1742954855220,3.39033608,2066.9,2066.4,0.7568]
[1742954855401,3.09476007,2066.7,2066.2,4.83979]
[1742954855604,3.09476007,2066.7,2066.2,9.6794]
[1742954855797,3.09476007,2066.7,2066.3,4.83953]
[1742954857400,3.09476007,2066.7,2066.3,4.83946]
[1742954857599,3.09476007,2066.7,2066.3,9.67884]
[1742954858289,3.09476007,2066.7,2066.4,4.83931]
[1742954859122,3.09476007,2066.7,2066.4,4.83915]
[1742954860091,0.7714,2066.4,2066.1,0.02]
[1742954860307,2.29966007,2066.2,2066.1,4.86]
[1742954860485,5.5784,2066.4,2066.2,4.83977]
[1742954860699,2.29966007,2066.3,2066.1,0.02]
[1742954861986,6.08746608,2066.3,2066.1,0.02]
[1742954863794,6.08746608,2066.3,2065.7,4.964197]
[1742954863795,0.7714,2065.9,2065.7,0.123287]
[1742954863994,13.22119707,2065.8,2065.7,0.123287]
[1742954864194,14.82828278,2065.8,2065.7,0.123287]
[1742954864395,7.67814578,2065.8,2065.7,0.123287]
[1742954864699,14.96370887,2065.8,2065.7,0.123287]
[1742954864899,12.58714578,2065.8,2065.7,0.123287]
[1742954865095,15.08242578,2065.8,2065.7,0.123287]
[1742954866206,15.63242578,2065.8,2065.7,0.123287]
[1742954867425,15.08242578,2065.8,2065.7,0.123287]
[1742954867625,10.17342578,2065.8,2065.7,0.123287]
[1742954867830,15.08742578,2065.8,2065.7,0.123287]
[1742954868030,10.17342578,2065.8,2065.7,0.123287]
[1742954868229,3.0,2065.7,2065.4,0.001743]
[1742954868542,2.29966007,2065.5,2065.4,0.001743]
[1742954868745,27.57663707,2065.5,2065.4,0.001743]
[1742954869026,30.37606007,2065.5,2065.4,0.001743]
[1742954869205,26.90718807,2065.5,2065.4,0.001743]
[1742954869403,28.24809516,2065.5,2065.4,0.001743]
[1742954869820,26.63830416,2065.5,2065.4,0.001743]
[1742954870517,13.57652916,2065.5,2065.4,0.001743]
[1742954870715,18.48752916,2065.5,2065.4,0.001743]
[1742954871040,12.32886716,2065.5,2065.4,0.001743]
[1742954871536,9.32886716,2065.5,2065.4,0.001743]
[1742954871894,12.32886716,2065.5,2065.4,0.001743]
[1742954872096,7.41986716,2065.5,2065.4,0.001743]
[1742954872299,10.98596007,2065.5,2065.4,0.001743]
[1742954873330,3.0,2065.5,2065.4,0.001743]
[1742954873503,30.21566007,2066.0,2065.5,4.84134]
[1742954873504,27.916,2066.0,2065.5,4.84134]
[1742954873709,2.29966007,2065.8,2065.5,4.84134]
[1742954874113,2.29966007,2065.8,2065.5,4.84133]
[1742954876202,2.29966007,2065.8,2065.6,4.84108]
[1742954876605,2.29966007,2065.8,2065.6,4.84116]
[1742954877333,2.29966007,2065.8,2065.5,4.84139]
[1742954877534,2.29966007,2065.8,2065.5,4.84131]
[1742954877714,2.29966007,2065.8,2065.4,5.618003]
[1742954877910,2.29966007,2065.8,2065.4,10.459583]
[1742954878104,2.29966007,2065.8,2065.4,10.459463]
[1742954878311,2.29966007,2065.8,2065.5,4.84135]
[1742954879357,7.19966007,2065.9,2065.5,4.84135]
[1742954880548,7.19966007,2065.9,2065.5,9.6826]
[1742954880726,7.19966007,2065.9,2065.5,4.84125]
[1742954881112,7.19966007,2065.9,2065.4,5.618003]
[1742954881113,0.8316,2065.6,2065.4,0.001743]
[1742954881316,5.29966007,2065.5,2065.4,0.001743]
[1742954881917,3.51156601,2065.8,2065.4,0.806943]
[1742954882217,3.13126007,2065.9,2065.5,4.84125]
[1742954882436,7.21566007,2065.9,2065.6,4.84118]
[1742954882816,7.21566007,2065.9,2065.5,9.68271]
[1742954883017,7.21566007,2065.9,2065.6,4.84109]
[1742954883236,2.29966007,2065.9,2065.6,4.84109]
[1742954883442,5.29966007,2065.9,2065.6,9.68214]
[1742954883648,5.29966007,2065.9,2065.6,4.84105]
[1742954884160,4.914,2066.0,2065.7,4.84081]
[1742954884453,4.914,2066.0,2065.8,4.84071]
[1742954884650,0.8316,2066.9,2066.2,4.83957]
[1742954884954,0.8316,2066.9,2066.4,4.83915]
[1742954884955,7.21866007,2066.8,2066.4,4.83915]
[1742954885156,2.29966007,2066.6,2066.2,4.83974]
[1742954885321,2.29966007,2066.6,2066.2,9.67939]
[1742954885847,2.29966007,2066.6,2066.2,4.83965]
[1742954886051,2.29966007,2066.6,2066.3,4.83956]
[1742954886925,2.29966007,2066.6,2066.2,4.83965]
[1742954887125,2.29966007,2066.6,2066.2,9.67931]
[1742954887722,3.0,2066.7,2066.2,4.83965]
[1742954887928,2.29966007,2066.5,2066.2,1.048497]
[1742954888161,0.789,2066.4,2066.0,0.8052]
[1742954888480,0.789,2066.4,2065.8,4.84053]
[1742954888481,2.29966007,2066.1,2065.8,4.84053]
[1742954888644,2.29966007,2066.1,2065.7,4.84087]
[1742954889383,0.7926,2066.8,2065.8,0.7675]
[1742954889531,2.29966007,2066.2,2065.8,0.7675]
[1742954889851,3.09226007,2066.2,2065.8,5.60819]
[1742954890864,0.7926,2066.2,2065.8,5.60819]
[1742954891356,3.0,2066.3,2065.8,0.7675]
[1742954891531,5.7256,2066.4,2065.8,5.6082]
[1742954891731,4.933,2066.4,2066.2,4.83972]
[1742954892429,4.933,2066.4,2066.2,4.83961]
[1742954892627,6.25295825,2066.3,2065.8,4.84057]
[1742954892861,3.0,2066.3,2066.1,4.83998]
[1742954893271,4.933,2066.4,2066.1,4.83998]
[1742954893428,0.7926,2066.5,2065.9,4.84048]
[1742954893631,4.967,2066.6,2066.4,4.83933]
[1742954893835,4.967,2066.6,2066.5,4.83909]
[1742954894248,3.0,2066.8,2066.5,4.83891]
[1742954894566,3.0,2066.8,2066.1,5.60748]
[1742954894567,27.93,2066.9,2066.8,4.83839]
[1742954894740,0.7926,2067.2,2067.0,4.83787]
[1742954894938,4.971,2067.3,2066.6,5.60636]
[1742954895138,0.7926,2067.5,2066.9,4.83804]
[1742954895345,3.25295825,2067.5,2066.9,4.83802]
[1742954895546,3.7926,2067.2,2066.6,4.83873]
[1742954895747,4.982,2067.1,2066.6,4.83873]
[1742954896179,4.982,2067.1,2066.8,4.83825]
[1742954896975,6.10549583,2067.1,2066.6,4.83876]
[1742954897337,3.0,2067.0,2066.6,4.83876]
[1742954900272,3.0,2067.0,2066.7,4.83854]
[1742954903553,2.95,2067.0,2066.7,4.83854]
[1742954904266,2.95,2067.0,2066.7,4.83847]
[1742954904461,0.7963,2067.6,2066.8,1.243547]
[1742954904643,8.20465825,2067.6,2066.9,4.83802]
[1742954904843,8.57051101,2067.6,2066.9,4.83802]
[1742954905075,2.46035825,2067.4,2066.8,5.59796]
[1742954905278,0.7963,2066.7,2066.0,0.96915999]
[1742954905455,2.46035825,2066.5,2066.0,4.84016]
[1742954905646,3.7963,2066.4,2065.9,4.8404]
[1742954905973,2.46035825,2066.3,2065.9,4.8404]
[1742954906175,3.08602408,2066.3,2065.5,5.60112]
[1742954906378,2.46035825,2066.3,2065.9,4.84038]
[1742954906874,0.7963,2066.4,2065.7,4.84075]
[1742954907074,2.46035825,2066.5,2065.7,4.84075]
[1742954907075,5.009,2066.5,2066.3,4.83955]
[1742954908062,5.009,2066.5,2066.2,4.83974]
[1742954908273,8.8033,2066.6,2066.2,4.83974]
[1742954908475,2.46035825,2066.5,2066.0,4.84026]
[1742954908987,6.37832408,2066.5,2065.9,4.8405]
[1742954909487,2.46035825,2066.3,2065.8,5.60042]
[1742954909862,3.7963,2066.2,2065.8,5.60042]
[1742954910063,7.46635825,2066.1,2065.7,4.84074]
[1742954910364,7.46635825,2066.1,2065.4,0.001743]
[1742954910365,2.46035825,2065.9,2065.4,4.843243]
[1742954910585,2.46035825,2065.9,2065.5,4.84141]
[1742954910887,2.46035825,2065.9,2065.4,4.843243]
[1742954911092,2.46035825,2065.7,2065.4,0.001743]
[1742954911890,5.004,2065.6,2065.4,0.001743]
[1742954912092,3.25665825,2065.5,2065.4,0.001743]
[1742954912993,6.25665825,2065.5,2065.4,0.001743]
[1742954913200,7.38272408,2065.5,2065.4,0.001743]
[1742954915186,18.05548626,2065.5,2065.4,0.001743]
[1742954915381,14.72133926,2065.5,2065.4,0.001743]
[1742954919480,12.18290026,2065.5,2065.4,0.001743]
[1742954919681,14.93918026,2065.5,2065.4,0.001743]
[1742954920073,7.75155626,2065.5,2065.4,0.001743]
[1742954920474,16.97290826,2065.5,2065.4,0.001743]
[1742954921296,21.94590826,2065.5,2065.4,0.001743]
[1742954922606,18.32597926,2065.5,2065.4,0.001743]
[1742954923404,17.47858426,2065.5,2065.4,0.001743]
[1742954923605,16.94985026,2065.5,2065.4,0.001743]
[1742954923797,16.45090926,2065.5,2065.4,0.001743]
[1742954923974,11.48490926,2065.5,2065.4,0.001743]
[1742954924175,15.87708126,2065.5,2065.4,0.001743]
[1742954925125,15.72917303,2065.5,2065.4,0.001743]
[1742954926071,16.23964103,2065.5,2065.4,0.001743]
[1742954926309,7.60764803,2065.5,2065.4,0.001743]
[1742954926803,3.0,2065.5,2065.4,0.001743]
[1742954927027,2.31645002,2065.5,2065.4,0.001743]
[1742954927176,7.26745002,2065.5,2065.4,0.001743]
[1742954927776,10.26745002,2065.5,2065.4,0.001743]
[1742954928093,5.31645002,2065.5,2065.4,0.001743]
[1742954928300,2.31645002,2065.5,2065.4,0.001743]
[1742954928502,5.31645002,2065.5,2065.4,0.001743]
[1742954930610,4.953,2065.6,2065.4,0.001743]
[1742954930611,7.95,2065.6,2065.4,0.001743]
[1742954930815,3.0,2065.6,2065.4,0.001743]
[1742954931112,5.31645002,2065.6,2065.4,0.001743]
[1742954932514,3.0,2065.6,2065.4,4.843373]
[1742954932820,5.31645002,2065.6,2065.4,4.843373]
[1742954933382,5.31645002,2065.6,2065.4,0.001743]
[1742954934081,5.31645002,2065.6,2065.4,4.843403]
[1742954935621,5.31645002,2065.6,2065.4,0.001743]
[1742954937183,3.0,2065.6,2065.4,0.001743]
[1742954937388,3.0,2065.6,2065.5,4.84144]
[1742954937636,3.0,2065.6,2065.4,4.843313]
[1742954937817,3.0,2065.6,2065.5,4.84144]
[1742954938712,27.925,2065.7,2065.5,4.84144]
[1742954939018,27.925,2065.7,2065.5,4.84131]
[1742954940519,2.31645002,2065.8,2065.5,4.84131]
[1742954940731,5.31645002,2065.8,2065.6,4.84111]
[1742954940918,2.31645002,2065.8,2065.6,5.38168743]
[1742954941091,27.934,2066.8,2065.9,4.8405]
[1742954941416,2.31645002,2066.3,2066.0,4.8401]
[1742954941627,2.31645002,2066.3,2066.1,0.805]
[1742954942702,2.31645002,2066.3,2066.1,5.64503]
[1742954942902,2.31645002,2066.3,2066.1,0.805]
[1742954944149,2.31645002,2066.3,2065.9,0.805]
[1742954944307,2.31645002,2066.1,2065.5,5.64631]
[1742954944498,2.31645002,2065.8,2065.6,4.84119]
[1742954945235,2.31645002,2065.8,2065.5,5.64643]
[1742954945401,2.31645002,2065.8,2065.5,10.48786]
[1742954945593,2.31645002,2065.8,2065.5,5.64643]
[1742954948698,2.31645002,2065.8,2065.5,5.64631]
[1742954950228,2.31645002,2065.8,2065.5,10.48766]
[1742954950411,2.31645002,2065.8,2065.6,4.84116]
[1742954951120,3.0,2065.9,2065.6,4.84116]
[1742954951605,3.0,2065.9,2065.7,4.84095]
[1742954951807,3.0,2065.9,2065.8,4.84073]
[1742954953224,2.31645002,2066.2,2065.9,4.84039]
[1742954953435,7.21345002,2066.2,2065.9,5.63659]
[1742954953642,4.896,2066.3,2065.9,5.63659]
[1742954953805,2.31645002,2066.2,2065.9,10.47688]
[1742954954000,5.31645002,2066.2,2065.9,10.47688]
[1742954954319,5.31645002,2066.2,2066.0,4.84012]
[1742954954826,2.31645002,2066.2,2066.0,4.84012]
[1742954955539,2.31645002,2066.4,2066.1,4.84003]
[1742954955710,3.0,2066.4,2066.2,4.83972]
[1742954955905,3.0,2066.4,2066.3,4.83956]
[1742954956238,3.0,2066.4,2066.2,4.83972]
[1742954958110,2.31645002,2066.6,2066.3,0.7962]
[1742954959648,3.33689502,2066.6,2066.3,0.7962]
[1742954959814,0.36891205,2066.9,2066.3,5.63566]
[1742954960019,2.31645002,2066.5,2066.3,0.7962]
[1742954960218,2.26645002,2066.5,2066.3,0.7962]
[1742954961645,2.31645002,2066.7,2066.4,4.83913]
[1742954961827,5.31645002,2066.7,2066.4,4.83913]
[1742954962028,3.0,2066.7,2066.4,10.725809]
[1742954962241,5.31645002,2066.7,2066.4,5.886619]
[1742954964247,5.31645002,2066.7,2066.4,10.725849]
[1742954964455,3.0,2066.7,2066.4,5.886619]
[1742954964655,5.31645002,2066.7,2066.4,5.886619]
[1742954970762,4.862,2067.1,2066.8,4.83839]
[1742954970926,0.7859,2067.5,2067.0,4.8377]
[1742954971132,2.31645002,2067.3,2066.8,4.83818]
[1742954971335,2.31645002,2067.1,2066.7,5.60573]
[1742954971852,2.31645002,2067.1,2066.7,10.44416]
[1742954972072,2.31645002,2067.1,2066.8,1.044416]
[1742954972366,2.31645002,2067.1,2066.7,0.7672]
[1742954972674,3.0,2067.0,2066.6,4.83875]
[1742954972882,3.0,2067.0,2066.6,9.67746]
[1742954973177,3.0,2067.0,2066.7,4.8386]
[1742954973391,2.31645002,2066.9,2066.6,9.67741]
[1742954973598,2.31645002,2066.9,2066.6,10.89347809]
[1742954973898,2.31645002,2066.9,2066.7,4.83861]
[1742954974790,3.0,2067.0,2066.7,4.83847]
[1742954974994,3.0,2067.0,2066.8,4.8383]
[1742954975293,5.31645002,2067.1,2066.9,4.83796]
[1742954976475,3.0,2067.1,2066.9,5.805617]
[1742954977497,3.0,2067.1,2066.9,6.572817]
[1742954978369,5.31645002,2067.4,2067.1,4.83769]
[1742954979470,2.31645002,2067.4,2067.1,4.83769]
[1742954979671,2.31645002,2067.2,2067.1,4.83769]
[1742954979985,3.0,2067.4,2067.1,5.9787437]
[1742954980182,2.31645002,2067.3,2067.1,5.9787437]
[1742954980482,2.31645002,2067.3,2066.9,5.805647]
[1742954980678,2.31645002,2067.1,2066.9,5.805647]
[1742954980879,2.31645002,2067.1,2067.0,4.83792]
[1742954983252,2.31645002,2067.1,2066.9,10.643917]
[1742954983486,2.31645002,2067.1,2067.0,0.7881]
[1742954984157,2.31645002,2067.3,2067.0,0.7881]
[1742954985086,2.31645002,2067.3,2067.0,5.62602]
[1742954986184,2.31645002,2067.3,2067.0,4.83792]
[1742954988584,2.31645002,2067.3,2067.0,4.83778]
[1742954989086,2.31645002,2067.3,2066.9,9.67618]
[1742954989290,2.31645002,2067.3,2067.0,4.83792]
[1742954990085,2.31645002,2067.1,2066.9,4.83802]
[1742954990293,2.31645002,2067.1,2066.9,12.172535]
[1742954990472,2.31645002,2067.3,2066.9,2.496455]
[1742954990654,2.31645002,2067.3,2067.1,4.83758]
[1742954993162,2.31645002,2067.5,2067.2,5.65801]
[1742954993502,5.31645002,2067.5,2067.3,4.83722]
[1742954994205,2.31645002,2067.5,2067.3,4.83706]
[1742954994361,2.31645002,2067.5,2067.3,5.402836]
[1742954998194,2.31645002,2067.5,2067.3,0.565776]
[1742954998401,2.31645002,2067.5,2067.2,0.8207]
[1742954998580,5.31645002,2067.3,2067.0,5.64338]
[1742954998779,2.31645002,2067.1,2067.0,4.83788]
[1742955000680,2.31645002,2067.1,2067.0,4.83792]
[1742955001903,2.31645002,2067.1,2066.9,4.83809]
[1742955002273,2.31645002,2067.1,2066.9,9.67613]
[1742955002474,2.31645002,2067.1,2067.0,4.83792]
[1742955002875,2.31645002,2067.1,2066.9,10.724163]
[1742955004193,2.31645002,2067.1,2066.9,5.886133]
[1742955005817,2.31645002,2067.1,2066.9,10.724123]
[1742955006115,2.31645002,2067.1,2066.9,5.886133]
[1742955006283,2.31645002,2067.1,2066.8,0.8055]
[1742955006492,2.31645002,2066.9,2066.6,4.83885]
[1742955006794,0.766,2067.0,2066.6,4.83885]
[1742955006795,2.31645002,2066.7,2066.6,4.83885]
[1742955008292,2.31645002,2066.7,2066.5,4.83904]
[1742955008498,2.31645002,2066.7,2066.5,7.337404]